[Event "POL-chT 2 Liga 2019"]
[Site "Poronin"]
[Date "2019.09.07"]
[Round "1.52"]
[White "Gola, Karol"]
[Black "Krainski, Slawomir"]
[Result "1-0"]
[ECO "C44"]
[WhiteElo "2203"]
[BlackElo "2077"]
[Annotator "ChessBase"]
[PlyCount "87"]
[EventDate "2019.09.07"]
[EventType "team-tourn"]
[EventCountry "POL"]
[SourceTitle "playchess.com"]
[Source "ChessBase"]
[SourceQuality "1"]
[TimeControl "40/5400+30:1800+30"]

1. e4 {[%emt 0:00:00]} e5 {[%emt 0:00:04]} 2. Nf3 {[%emt 0:00:00]} Nc6 {[%emt 0:00:05]} 3. d4 {[%emt 0:00:01]} exd4 {[%emt 0:00:21]} 4. Nxd4 {[%emt 0:00:04]} Nf6 {[%emt 0:00:26]} 5. Nxc6 {[%emt 0:00:44]} bxc6 {[%emt 0:00:08]} 6. Bd3 {[%emt 0:00:18]} d5 {[%emt 0:00:15]} 7. exd5 {[%emt 0:00:10]} cxd5 {[%emt 0:00:07]} 8. O-O {[%emt 0:00:11]} Be7 {[%emt 0:00:07]} 9. c4 {[%emt 0:02:05]} c6 {[%emt 0:00:32]} 10. Nc3 {[%emt 0:07:20]} O-O {[%emt 0:01:34]} 11. h3 {[%emt 0:13:24]} Be6 {[%emt 0:10:25]} 12. cxd5 {[%emt 0:12:24]} cxd5 {[%emt 0:03:05]} 13. Nb5 {[%emt 0:01:39]} Ne4 {[%emt 0:15:14]} 14. Nd4 {[%emt 0:13:30]} Bd7 {[%emt 0:00:32]} 15. Bc2 {[%emt 0:08:29]} Rc8 {[%emt 0:15:20]} 16. Bb3 {[%emt 0:09:03]} Be6 {[%emt 0:21:03]} 17. Be3 {[%emt 0:00:22]} Bd6 {[%emt 0:05:27]} 18. Nxe6 {[%emt 0:02:52]} fxe6 {[%emt 0:00:07]} 19. Bxd5 {[%emt 0:02:07]} Bh2+ {[%emt 0:00:43]} 20. Kxh2 {[%emt 0:00:04]} exd5 {[%emt 0:00:07]} 21. Bxa7 {[%emt 0:01:31]} Qc7+ {[%emt 0:03:46]} 22. Kg1 {[%emt 0:00:16]} Nc3 {[%emt 0:03:57]} 23. bxc3 {[%emt 0:00:24]} Qxa7 {[%emt 0:00:05]} 24. Qxd5+ {[%emt 0:00:06]} Kh8 {[%emt 0:00:06]} 25. Qd4 {[%emt 0:00:52]} Qa3 {[%emt 0:00:18]} 26. c4 {[%emt 0:08:25]} Rc6 {[%emt 0:01:48]} 27. Rfc1 {[%emt 0:01:27]} Rg6 {[%emt 0:01:04]} 28. Qe3 {[%emt 0:01:31]} Qa8 {[%emt 0:00:33]} 29. g3 {[%emt 0:01:23]} Rf3 {[%emt 0:08:27]} 30. Qe5 {[%emt 0:02:54]} Qf8 {[%emt 0:01:53]} 31. Rc2 {[%emt 0:01:53]} Rgf6 {[%emt 0:00:46]} 32. Qd4 {[%emt 0:02:46]} Rd6 {[%emt 0:02:52]} 33. Qe4 {[%emt 0:00:11]} Rdf6 {[%emt 0:00:20]} 34. Qd4 {[%emt 0:00:38]} Rd6 {[%emt 0:00:10]} 35. Qb2 {[%emt 0:02:31]} h5 {[%emt 0:00:54]} 36. h4 {[%emt 0:00:34]} Rdf6 {[%emt 0:01:37]} 37. Rb1 {[%emt 0:00:40]} Kh7 {[%emt 0:00:08]} 38. c5 {[%emt 0:01:32]} Qc8 {[%emt 0:00:57]} 39. Qe5 {[%emt 0:00:31]} g6 {[%emt 0:02:05]} 40. Rd1 {[%emt 0:00:00]} Qg4 {[%emt 0:00:00]} 41. Rd4 {[%emt 0:11:42]} Qc8 {[%emt 0:02:45]} 42. c6 {[%emt 0:02:56]} Rf7 {[%emt 0:06:15]} 43. c7 {[%emt 0:01:42]} R7f5 {[%emt 0:02:32]} 44. Rd8 {[%emt 0:01:50]} 1-0

[Event "POL-chT 2 Liga 2019"]
[Site "Poronin"]
[Date "2019.09.07"]
[Round "1.53"]
[White "Szczesniak, Andrzej"]
[Black "Szolc, Grzegorz"]
[Result "0-1"]
[ECO "E46"]
[WhiteElo "1941"]
[BlackElo "2038"]
[Annotator "NA"]
[PlyCount "100"]
[EventDate "2019.09.07"]
[EventType "team-tourn"]
[EventCountry "POL"]
[SourceTitle "playchess.com"]
[Source "ChessBase"]
[SourceQuality "1"]
[TimeControl "40/5400+30:1800+30"]

1. d4 {[%emt 0:00:00]} Nf6 {[%emt 0:00:00]} 2. c4 {[%emt 0:00:00]} e6 {[%emt 0:00:00]} 3. Nc3 {[%emt 0:00:00]} Bb4 {[%emt 0:00:38]} 4. e3 {[%emt 0:00:24]} O-O {[%emt 0:02:04]} 5. Nge2 {[%emt 0:00:10]} b6 {[%emt 0:00:45]} 6. a3 {[%emt 0:00:47]} Bxc3+ {[%emt 0:01:15]} 7. Nxc3 {[%emt 0:00:26]} Bb7 {[%emt 0:01:20]} 8. d5 {[%emt 0:01:23]} e5 {[%emt 0:16:15]} 9. e4 {[%emt 0:05:26]} h6 {[%emt 0:03:03]} 10. Bd3 {[%emt 0:03:53]} d6 {[%emt 0:03:27]} 11. O-O {[%emt 0:00:25]} Nbd7 {[%emt 0:01:55]} 12. b4 {[%emt 0:08:56]} a5 {[%emt 0:02:43]} 13. Rb1 {[%emt 0:10:25]} axb4 {[%emt 0:09:01]} 14. axb4 {[%emt 0:00:50]} Ba6 {[%emt 0:01:26]} 15. Be3 {[%emt 0:02:10]} Qe7 {[%emt 0:02:54]} 16. Nb5 {[%emt 0:12:53]} Bxb5 {[%emt 0:07:40]} 17. cxb5 {[%emt 0:00:02]} Ra7 {[%emt 0:00:13]} 18. Rc1 {[%emt 0:02:03]} Rfa8 {[%emt 0:00:55]} 19. Rc6 {[%emt 0:11:05]} Nf8 {[%emt 0:06:59]} 20. Qf3 {[%emt 0:08:40]} Ng6 {[%emt 0:03:49]} 21. Rfc1 {[%emt 0:00:27]} Ne8 {[%emt 0:02:18]} 22. g3 {[%emt 0:04:20]} Ra3 {[%emt 0:04:59]} 23. Bf1 {[%emt 0:01:50]} Rb3 {[%emt 0:05:14]} 24. Bh3 {[%emt 0:03:00]} Rxb4 {[%emt 0:03:50]} 25. Bf5 {[%emt 0:00:35]} Qf6 {[%emt 0:05:22]} 26. Qg4 {[%emt 0:08:36]} Ne7 {[%emt 0:04:22]} 27. Bd7 {[%emt 0:00:19]} Nxc6 {[%emt 0:02:21]} 28. Bxc6 {[%emt 0:00:13]} Rd8 {[%emt 0:01:12]} 29. Bxe8 {[%emt 0:01:08]} Rxe8 {[%emt 0:00:03]} 30. Rxc7 {[%emt 0:00:02]} Rxb5 {[%emt 0:01:29]} 31. Rb7 {[%emt 0:06:18]} Rb1+ {[%emt 0:02:13]} 32. Kg2 {[%emt 0:00:04]} b5 {[%emt 0:02:19]} 33. Qe2 {[%emt 0:05:35]} Rb4 {[%emt 0:03:15]} 34. f3 {[%emt 0:02:47]} Rc8 {[%emt 0:00:24]} 35. Rxb5 {[%emt 0:00:15]} Rxb5 {[%emt 0:01:05]} 36. Qxb5 {[%emt 0:00:01]} Rc2+ {[%emt 0:00:12]} 37. Bf2 {[%emt 0:00:23]} Qd8 {[%emt 0:00:42]} 38. Qd3 {[%emt 0:00:48]} Qc7 {[%emt 0:00:24]} 39. g4 {[%emt 0:02:02]} Qc5 {[%emt 0:00:47]} 40. Qf1 {[%emt 0:00:00]} Qc3 {[%emt 0:00:00]} 41. Kg3 {[%emt 0:00:35]} Qd2 {[%emt 0:01:03]} 42. Qe1 {[%emt 0:08:26]} Qf4+ {[%emt 0:04:17]} 43. Kg2 {[%emt 0:00:04]} g6 {[%emt 0:02:17]} 44. Qd1 {[%emt 0:04:25]} Rd2 {[%emt 0:01:56]} 45. Qb3 {[%emt 0:04:39]} Kg7 {[%emt 0:04:32]} 46. Kg1 {[%emt 0:02:05]} Re2 {[%emt 0:02:44]} 47. Qc3 {[%emt 0:03:39]} h5 {[%emt 0:04:16]} 48. h3 {[%emt 0:01:23]} h4 {[%emt 0:07:46]} 49. Qd3 {[%emt 0:04:36]} Qc1+ {[%emt 0:00:42]} 50. Kg2 {[%emt 0:00:29]} Qb2 {[%emt 0:00:09]} 0-1

[Event "POL-chT 2 Liga 2019"]
[Site "Poronin"]
[Date "2019.09.07"]
[Round "1.54"]
[White "Szydlowska-Duda, Marta"]
[Black "Pacuszka, Wioletta"]
[Result "1-0"]
[ECO "D02"]
[WhiteElo "1986"]
[BlackElo "1764"]
[Annotator "NA"]
[PlyCount "29"]
[EventDate "2019.09.07"]
[EventType "team-tourn"]
[EventCountry "POL"]
[SourceTitle "playchess.com"]
[Source "ChessBase"]
[SourceQuality "1"]
[TimeControl "40/5400+30:1800+30"]

1. d4 {[%emt 0:00:00]} d5 {[%emt 0:00:00]} 2. Nf3 {[%emt 0:00:00]} Nf6 {[%emt 0:00:00]} 3. Bf4 {[%emt 0:00:00]} e6 {[%emt 0:00:00]} 4. e3 {[%emt 0:00:05]} Bd6 {[%emt 0:00:19]} 5. Ne5 {[%emt 0:02:15]} O-O {[%emt 0:03:15]} 6. Bd3 {[%emt 0:02:03]} c5 {[%emt 0:07:54]} 7. c3 {[%emt 0:01:06]} b6 {[%emt 0:01:25]} 8. Nd2 {[%emt 0:02:13]} Bb7 {[%emt 0:00:33]} 9. O-O {[%emt 0:02:45]} Nc6 {[%emt 0:08:22]} 10. Ndf3 {[%emt 0:03:45]} Ne7 {[%emt 0:03:09]} 11. Qe2 {[%emt 0:10:30]} Ne4 {[%emt 0:18:54]} 12. dxc5 {[%emt 0:13:58]} Nxc5 {[%emt 0:02:43]} 13. Bxh7+ {[%emt 0:04:17]} Kh8 {[%emt 0:04:10]} 14. Ng5 {[%emt 0:02:31]} Bxe5 {[%emt 0:17:03]} 15. Qh5 {[%emt 0:01:34]} 1-0

[Event "POL-chT 2 Liga 2019"]
[Site "Poronin"]
[Date "2019.09.08"]
[Round "2.3"]
[White "Tymrakiewicz, Rafal"]
[Black "Czapla, Andrzej"]
[Result "1-0"]
[ECO "A45"]
[WhiteElo "2257"]
[BlackElo "1993"]
[Annotator "NA"]
[PlyCount "79"]
[EventDate "2019.09.07"]
[EventType "team-tourn"]
[EventCountry "POL"]
[SourceTitle "playchess.com"]
[Source "ChessBase"]
[SourceQuality "1"]
[TimeControl "40/5400+30:1800+30"]

1. d4 {[%emt 0:00:00]} Nf6 {[%emt 0:00:00]} 2. Bg5 {[%emt 0:00:13]} d5 {[%emt 0:00:17]} 3. e3 {[%emt 0:00:56]} c6 {[%emt 0:02:40]} 4. Bd3 {[%emt 0:06:25]} Bg4 {[%emt 0:00:25]} 5. f3 {[%emt 0:03:26]} Bh5 {[%emt 0:00:01]} 6. Ne2 {[%emt 0:00:09]} Bg6 {[%emt 0:00:23]} 7. Nbc3 {[%emt 0:00:22]} Nbd7 {[%emt 0:00:57]} 8. Nf4 {[%emt 0:16:25]} Bxd3 {[%emt 0:00:37]} 9. Nxd3 {[%emt 0:00:14]} h6 {[%emt 0:01:46]} 10. Bh4 {[%emt 0:00:45]} Qb6 {[%emt 0:02:03]} 11. Na4 {[%emt 0:05:01]} Qa5+ {[%emt 0:01:45]} 12. c3 {[%emt 0:03:25]} e6 {[%emt 0:00:01]} 13. b4 {[%emt 0:02:19]} Qc7 {[%emt 0:00:02]} 14. Nac5 {[%emt 0:01:09]} Bd6 {[%emt 0:02:32]} 15. Qe2 {[%emt 0:07:06]} b6 {[%emt 0:04:34]} 16. Nxd7 {[%emt 0:00:53]} Nxd7 {[%emt 0:00:46]} 17. f4 {[%emt 0:05:44]} c5 {[%emt 0:05:04]} 18. O-O {[%emt 0:02:06]} O-O {[%emt 0:00:54]} 19. bxc5 {[%emt 0:10:03]} bxc5 {[%emt 0:00:31]} 20. Ne5 {[%emt 0:00:03]} Rab8 {[%emt 0:05:07]} 21. Qg4 {[%emt 0:05:06]} f5 {[%emt 0:15:09]} 22. Qg6 {[%emt 0:05:03]} Nf6 {[%emt 0:02:00]} 23. Rf3 {[%emt 0:00:52]} Rb7 {[%emt 0:03:53]} 24. Raf1 {[%emt 0:06:13]} Bxe5 {[%emt 0:02:40]} 25. fxe5 {[%emt 0:02:19]} Ne4 {[%emt 0:00:01]} 26. Qxe6+ {[%emt 0:01:24]} Qf7 {[%emt 0:00:11]} 27. Qxf7+ {[%emt 0:02:47]} Rfxf7 {[%emt 0:00:22]} 28. e6 {[%emt 0:00:36]} Rfc7 {[%emt 0:01:45]} 29. e7 {[%emt 0:01:23]} Rxe7 {[%emt 0:00:02]} 30. Bxe7 {[%emt 0:00:17]} Rxe7 {[%emt 0:00:03]} 31. Rxf5 {[%emt 0:01:06]} Nxc3 {[%emt 0:00:10]} 32. dxc5 {[%emt 0:02:21]} Rc7 {[%emt 0:00:21]} 33. Rf8+ {[%emt 0:01:40]} Kh7 {[%emt 0:00:01]} 34. R1f7 {[%emt 0:01:55]} Rxc5 {[%emt 0:00:13]} 35. Rxa7 {[%emt 0:00:22]} Ne4 {[%emt 0:00:31]} 36. h3 {[%emt 0:03:43]} Rc1+ {[%emt 0:00:20]} 37. Rf1 {[%emt 0:00:59]} Rc3 {[%emt 0:00:07]} 38. Rff7 {[%emt 0:00:22]} Rxe3 {[%emt 0:00:23]} 39. Rxg7+ {[%emt 0:00:28]} Kh8 {[%emt 0:00:01]} 40. Rge7 {[%emt 0:00:00]} 1-0

[Event "POL-chT 2 Liga 2019"]
[Site "Poronin"]
[Date "2019.09.08"]
[Round "2.5"]
[White "Gmaj, Krzysztof"]
[Black "Kurpiewski, Slawomir"]
[Result "1-0"]
[ECO "C47"]
[WhiteElo "2120"]
[BlackElo "1978"]
[Annotator "NA"]
[PlyCount "68"]
[EventDate "2019.09.07"]
[EventType "team-tourn"]
[EventCountry "POL"]
[SourceTitle "playchess.com"]
[Source "ChessBase"]
[SourceQuality "1"]
[TimeControl "40/5400+30:1800+30"]

1. e4 {[%emt 0:00:00]} e5 {[%emt 0:00:00]} 2. Nf3 {[%emt 0:00:00]} Nc6 {[%emt 0:00:00]} 3. Nc3 {[%emt 0:00:00]} Nf6 {[%emt 0:00:00]} 4. a3 {[%emt 0:00:00]} Be7 {[%emt 0:00:00]} 5. d4 {[%emt 0:00:00]} d6 {[%emt 0:00:05]} 6. h3 {[%emt 0:05:57]} O-O {[%emt 0:01:07]} 7. Be2 {[%emt 0:04:25]} Re8 {[%emt 0:00:28]} 8. O-O {[%emt 0:00:47]} h6 {[%emt 0:01:34]} 9. Be3 {[%emt 0:02:11]} Bf8 {[%emt 0:00:41]} 10. Qd3 {[%emt 0:12:12]} Qe7 {[%emt 0:18:21]} 11. dxe5 {[%emt 0:06:15]} Nxe5 {[%emt 0:06:40]} 12. Nxe5 {[%emt 0:00:45]} dxe5 {[%emt 0:00:20]} 13. Rad1 {[%emt 0:02:06]} c6 {[%emt 0:02:09]} 14. Bc1 {[%emt 0:07:01]} Be6 {[%emt 0:13:56]} 15. Qg3 {[%emt 0:01:03]} g6 {[%emt 0:01:51]} 16. Qxe5 {[%emt 0:01:08]} Nd7 {[%emt 0:00:34]} 17. Qg3 {[%emt 0:02:43]} Bg7 {[%emt 0:01:51]} 18. f4 {[%emt 0:02:52]} Bxc3 {[%emt 0:02:26]} 19. bxc3 {[%emt 0:03:28]} Kh7 {[%emt 0:05:23]} 20. f5 {[%emt 0:06:51]} gxf5 {[%emt 0:00:12]} 21. exf5 {[%emt 0:01:00]} Bd5 {[%emt 0:02:03]} 22. Bf3 {[%emt 0:19:07]} Bxf3 {[%emt 0:09:14]} 23. Qxf3 {[%emt 0:00:43]} Nf6 {[%emt 0:03:04]} 24. Qf4 {[%emt 0:01:06]} Ng8 {[%emt 0:09:49]} 25. f6 {[%emt 0:03:36]} Qc5+ {[%emt 0:02:20]} 26. Kh1 {[%emt 0:00:17]} Re6 {[%emt 0:00:52]} 27. Rd7 {[%emt 0:02:49]} Rf8 {[%emt 0:00:33]} 28. Qh4 {[%emt 0:06:02]} Qxc3 {[%emt 0:00:59]} 29. Bd2 {[%emt 0:04:30]} Qe5 {[%emt 0:06:45]} 30. Rf3 {[%emt 0:00:28]} Qa1+ {[%emt 0:02:45]} 31. Kh2 {[%emt 0:00:07]} Qe5+ {[%emt 0:00:02]} 32. Kg1 {[%emt 0:00:32]} Qa1+ {[%emt 0:01:40]} 33. Kf2 Rxf6 34. Qe4+ Kg7 {Rg3+ Kh8+ Rf3} 1-0

[Event "POL-chT 2 Liga 2019"]
[Site "Poronin"]
[Date "2019.09.08"]
[Round "2.6"]
[White "Waszczuk, Patrycja"]
[Black "Kubicka, Anna"]
[Result "0-1"]
[ECO "B18"]
[WhiteElo "2197"]
[BlackElo "2225"]
[Annotator "NA"]
[PlyCount "98"]
[EventDate "2019.09.07"]
[EventType "team-tourn"]
[EventCountry "POL"]
[SourceTitle "playchess.com"]
[Source "ChessBase"]
[SourceQuality "1"]
[TimeControl "40/5400+30:1800+30"]

1. e4 {[%emt 0:00:00]} c6 {[%emt 0:00:00]} 2. d4 {[%emt 0:00:00]} d5 {[%emt 0:00:00]} 3. Nd2 {[%emt 0:00:00]} dxe4 {[%emt 0:00:00]} 4. Nxe4 {[%emt 0:00:00]} Bf5 {[%emt 0:00:11]} 5. Ng3 {[%emt 0:00:00]} Bg6 6. f4 {[%emt 0:00:04]} e6 {[%emt 0:00:58]} 7. Nf3 {[%emt 0:00:06]} Nd7 {[%emt 0:01:32]} 8. Bd3 {[%emt 0:00:09]} Bxd3 {[%emt 0:00:26]} 9. Qxd3 {[%emt 0:00:06]} Bd6 {[%emt 0:14:26]} 10. Ne4 {[%emt 0:01:40]} Qc7 {[%emt 0:13:52]} 11. Ne5 {[%emt 0:06:13]} Ngf6 {[%emt 0:12:11]} 12. Nxd6+ {[%emt 0:00:14]} Qxd6 {[%emt 0:00:14]} 13. O-O {[%emt 0:00:11]} O-O {[%emt 0:01:51]} 14. b3 {[%emt 0:00:07]} Rfd8 {[%emt 0:03:31]} 15. Bb2 {[%emt 0:03:20]} c5 {[%emt 0:11:55]} 16. Rad1 {[%emt 0:00:22]} Rac8 {[%emt 0:06:09]} 17. c4 {[%emt 0:00:28]} cxd4 {[%emt 0:09:29]} 18. Bxd4 {[%emt 0:01:32]} Qc7 {[%emt 0:01:00]} 19. Qf3 {[%emt 0:07:17]} Nxe5 {[%emt 0:05:45]} 20. fxe5 {[%emt 0:00:40]} Ne8 {[%emt 0:01:05]} 21. Qe4 {[%emt 0:02:25]} b6 {[%emt 0:02:42]} 22. Rd3 {[%emt 0:04:58]} g6 {[%emt 0:07:48]} 23. Rdf3 {[%emt 0:01:01]} Rd7 {[%emt 0:02:01]} 24. Be3 {[%emt 0:00:47]} Ng7 {[%emt 0:01:03]} 25. g4 {[%emt 0:01:22]} Rcd8 {[%emt 0:03:03]} 26. Qf4 {[%emt 0:08:52]} Rd1 {[%emt 0:00:44]} 27. Qxf7+ {[%emt 0:02:33]} Qxf7 {[%emt 0:00:04]} 28. Rxf7 {[%emt 0:00:07]} Nf5 {[%emt 0:00:21]} 29. Bg5 {[%emt 0:03:05]} Kxf7 {[%emt 0:00:32]} 30. Bxd8 {[%emt 0:00:05]} Rxd8 {[%emt 0:00:29]} 31. gxf5 {[%emt 0:02:38]} exf5 {[%emt 0:00:15]} 32. Rf3 {[%emt 0:05:27]} Ke6 {[%emt 0:00:25]} 33. Re3 {[%emt 0:00:25]} f4 {[%emt 0:01:26]} 34. Re2 {[%emt 0:00:08]} g5 {[%emt 0:00:21]} 35. Kf2 {[%emt 0:00:35]} h5 {[%emt 0:00:31]} 36. b4 {[%emt 0:00:37]} Rd4 {[%emt 0:00:58]} 37. Rc2 {[%emt 0:00:18]} Kxe5 {[%emt 0:00:24]} 38. c5 {[%emt 0:00:09]} bxc5 {[%emt 0:00:18]} 39. Rxc5+ {[%emt 0:02:41]} Rd5 {[%emt 0:00:31]} 40. Rc2 {[%emt 0:00:00]} g4 {[%emt 0:00:00]} 41. a4 {[%emt 0:05:55]} Rd4 {[%emt 0:08:48]} 42. Rc5+ {[%emt 0:02:36]} Ke4 {[%emt 0:00:43]} 43. Rxh5 {[%emt 0:01:13]} Rxb4 {[%emt 0:01:04]} 44. Ra5 {[%emt 0:01:10]} Rb2+ {[%emt 0:00:46]} 45. Ke1 {[%emt 0:00:41]} Rxh2 {[%emt 0:01:10]} 46. Rxa7 {[%emt 0:00:42]} Ra2 {[%emt 0:00:48]} 47. a5 {[%emt 0:00:53]} g3 {[%emt 0:00:46]} 48. Rg7 {[%emt 0:01:13]} Rxa5 {[%emt 0:00:58]} 49. Kf1 {[%emt 0:00:52]} Ke5 0-1

[Event "POL-chT 2 Liga 2019"]
[Site "Poronin"]
[Date "2019.09.08"]
[Round "2.8"]
[White "Kyc, Jerzy"]
[Black "Janaszak, Dawid"]
[Result "1/2-1/2"]
[ECO "B33"]
[WhiteElo "2309"]
[BlackElo "2351"]
[Annotator "NA"]
[PlyCount "106"]
[EventDate "2019.09.07"]
[EventType "team-tourn"]
[EventCountry "POL"]
[SourceTitle "playchess.com"]
[Source "ChessBase"]
[SourceQuality "1"]
[TimeControl "40/5400+30:1800+30"]

1. e4 {[%emt 0:00:00]} c5 {[%emt 0:00:00]} 2. Nf3 {[%emt 0:00:00]} Nc6 {[%emt 0:00:00]} 3. d4 {[%emt 0:00:00]} cxd4 {[%emt 0:00:00]} 4. Nxd4 {[%emt 0:00:00]} Nf6 {[%emt 0:00:15]} 5. Nc3 {[%emt 0:00:00]} e5 {[%emt 0:00:12]} 6. Ndb5 {[%emt 0:00:00]} d6 {[%emt 0:00:12]} 7. Bg5 {[%emt 0:00:00]} a6 {[%emt 0:00:09]} 8. Na3 {[%emt 0:00:01]} b5 {[%emt 0:00:09]} 9. Nd5 {[%emt 0:00:04]} Be7 {[%emt 0:00:09]} 10. Bxf6 {[%emt 0:00:11]} Bxf6 {[%emt 0:00:08]} 11. c3 {[%emt 0:00:06]} Bg5 {[%emt 0:00:29]} 12. Nc2 {[%emt 0:00:16]} Rb8 {[%emt 0:00:34]} 13. Be2 {[%emt 0:00:33]} O-O {[%emt 0:00:35]} 14. O-O {[%emt 0:00:06]} a5 {[%emt 0:01:13]} 15. Nce3 {[%emt 0:02:08]} Ne7 {[%emt 0:05:33]} 16. Nxe7+ {[%emt 0:05:47]} Qxe7 {[%emt 0:00:34]} 17. Nd5 {[%emt 0:00:01]} Qa7 {[%emt 0:01:42]} 18. Qc2 {[%emt 0:02:50]} Be6 {[%emt 0:04:17]} 19. Rfd1 {[%emt 0:10:01]} g6 {[%emt 0:07:05]} 20. a4 {[%emt 0:02:45]} bxa4 {[%emt 0:11:05]} 21. Rxa4 {[%emt 0:07:37]} f5 {[%emt 0:02:29]} 22. exf5 {[%emt 0:13:07]} Rxf5 {[%emt 0:06:45]} 23. Bg4 {[%emt 0:02:15]} Bxd5 {[%emt 0:27:41]} 24. Bxf5 {[%emt 0:00:34]} Bb3 {[%emt 0:01:28]} 25. Qxb3+ {[%emt 0:00:05]} Rxb3 {[%emt 0:00:02]} 26. Be6+ {[%emt 0:00:08]} Kg7 {[%emt 0:01:36]} 27. Bxb3 {[%emt 0:00:02]} Qb6 {[%emt 0:00:48]} 28. Bd5 {[%emt 0:04:06]} Qxb2 {[%emt 0:18:18]} 29. Rxa5 Bd8 {[%emt 0:00:58]} 30. Ra7+ {[%emt 0:01:09]} Kh6 {[%emt 0:01:47]} 31. Bg8 {[%emt 0:00:45]} Qc2 {[%emt 0:06:53]} 32. Rxh7+ {[%emt 0:00:27]} Kg5 {[%emt 0:00:01]} 33. h4+ {[%emt 0:00:41]} Kf5 {[%emt 0:00:02]} 34. Rf7+ {[%emt 0:03:19]} Bf6 {[%emt 0:00:11]} 35. Re1 {[%emt 0:13:12]} Qxc3 {[%emt 0:01:59]} 36. Re3 {[%emt 0:00:38]} Qa1+ {[%emt 0:00:11]} 37. Kh2 {[%emt 0:00:03]} e4 {[%emt 0:00:19]} 38. g4+ {[%emt 0:03:27]} Ke5 {[%emt 0:00:58]} 39. g5 {[%emt 0:00:18]} Bd8 {[%emt 0:00:27]} 40. Rd7 {[%emt 0:00:00]} Qf1 {[%emt 0:00:00]} 41. Rf7 {[%emt 0:15:05]} d5 {[%emt 0:01:39]} 42. Rg3 {[%emt 0:02:40]} d4 {[%emt 0:12:15]} 43. h5 {[%emt 0:06:07]} gxh5 {[%emt 0:05:42]} 44. Rg1 {[%emt 0:19:38]} Qe2 {[%emt 0:00:58]} 45. g6 {[%emt 0:06:05]} Bf6 {[%emt 0:04:48]} 46. Rg2 {[%emt 0:00:37]} Qf3 {[%emt 0:06:28]} 47. g7 {[%emt 0:05:55]} Qf4+ {[%emt 0:00:07]} 48. Kh1 {[%emt 0:00:05]} e3 {[%emt 0:02:21]} 49. Rxf6 {[%emt 0:02:15]} Kxf6 {[%emt 0:01:15]} 50. Bc4 {[%emt 0:01:23]} Qh4+ {[%emt 0:00:45]} 51. Kg1 {[%emt 0:00:03]} Qxf2+ {[%emt 0:00:58]} 52. Rxf2+ {[%emt 0:00:03]} exf2+ {[%emt 0:00:03]} 53. Kxf2 {[%emt 0:00:09]} Kxg7 {[%emt 0:00:02]} 1/2-1/2

[Event "POL-chT 2 Liga 2019"]
[Site "Poronin"]
[Date "2019.09.08"]
[Round "2.10"]
[White "Pietruszewski, Marcin"]
[Black "Wlodarczyk, Oskar"]
[Result "1/2-1/2"]
[ECO "C42"]
[WhiteElo "2215"]
[BlackElo "2243"]
[Annotator "NA"]
[PlyCount "64"]
[EventDate "2019.09.07"]
[EventType "team-tourn"]
[EventCountry "POL"]
[SourceTitle "playchess.com"]
[Source "ChessBase"]
[SourceQuality "1"]
[TimeControl "40/5400+30:1800+30"]

1. e4 {[%emt 0:00:00]} e5 {[%emt 0:00:00]} 2. Nf3 {[%emt 0:00:00]} Nf6 {[%emt 0:00:00]} 3. Nxe5 {[%emt 0:00:00]} d6 {[%emt 0:00:00]} 4. Nf3 {[%emt 0:00:00]} Nxe4 {[%emt 0:00:00]} 5. Nc3 {[%emt 0:00:00]} Nf6 {[%emt 0:00:00]} 6. d4 {[%emt 0:00:37]} d5 {[%emt 0:00:06]} 7. Bg5 {[%emt 0:01:31]} c6 {[%emt 0:00:32]} 8. Bd3 {[%emt 0:00:49]} Be7 {[%emt 0:00:20]} 9. O-O {[%emt 0:01:22]} O-O {[%emt 0:02:21]} 10. Ne5 {[%emt 0:11:07]} Nbd7 {[%emt 0:03:41]} 11. Qd2 {[%emt 0:03:52]} Re8 {[%emt 0:07:00]} 12. Rae1 {[%emt 0:01:41]} Nf8 {[%emt 0:01:54]} 13. Bh4 {[%emt 0:28:35]} Ne4 {[%emt 0:18:41]} 14. Nxe4 {[%emt 0:03:48]} Bxh4 {[%emt 0:01:37]} 15. Ng3 {[%emt 0:07:43]} g6 {[%emt 0:06:52]} 16. c3 {[%emt 0:08:18]} f5 {[%emt 0:20:59]} 17. Re2 {[%emt 0:00:49]} Bg5 {[%emt 0:06:22]} 18. f4 {[%emt 0:07:15]} Bh6 {[%emt 0:01:06]} 19. Rf3 {[%emt 0:03:39]} Nd7 {[%emt 0:03:31]} 20. Nxd7 {[%emt 0:03:26]} Bxd7 {[%emt 0:01:22]} 21. Nf1 {[%emt 0:01:21]} Rxe2 {[%emt 0:02:49]} 22. Qxe2 {[%emt 0:00:23]} Qf8 {[%emt 0:00:22]} 23. g3 {[%emt 0:00:20]} Re8 {[%emt 0:02:55]} 24. Re3 {[%emt 0:00:02]} Rxe3 {[%emt 0:00:49]} 25. Qxe3 {[%emt 0:00:01]} Qe8 {[%emt 0:00:18]} 26. Qf2 {[%emt 0:00:39]} Bg7 {[%emt 0:02:22]} 27. Nd2 {[%emt 0:00:02]} Qe7 {[%emt 0:01:31]} 28. Nf3 {[%emt 0:00:07]} b6 {[%emt 0:02:33]} 29. Qe2 {[%emt 0:07:56]} Qxe2 {[%emt 0:01:10]} 30. Bxe2 {[%emt 0:00:01]} Kf8 {[%emt 0:01:08]} 31. Kf2 {[%emt 0:00:04]} Ke7 {[%emt 0:00:12]} 32. Ke3 {[%emt 0:00:02]} Kd6 {[%emt 0:00:49] Ke4 Ke5+} 1/2-1/2